[Event "Titled Tuesday Blitz June 6 Early 2023"]
[White "Pakleza, Zbigniew"]
[Black "Zheenbekov, Nurgazy"]
[WhiteFideId "1119290"]
[BlackFideId "13800485"]
[WhiteElo "2410"]
[BlackElo "1975"]
[Result "1-0"]
[Round "2"]
[TimeControl "180+2"]
[Date "2023.06.06"]
[WhiteClock "0:00:03"]
[BlackClock "0:00:01"]
[Board "59"]

1. d4 {[%clk 0:03:00]}  Nf6 {[%clk 0:02:59]} 2. Nf3 {[%clk 0:03:01]}  e6 {[%clk 0:02:59]} 3. Bf4 {[%clk 0:03:01]}  d5 {[%clk 0:02:53]} 4. e3 {[%clk 0:03:02]}  Bd6 {[%clk 0:02:52]} 5. Bg3 {[%clk 0:03:02]}  O-O {[%clk 0:02:50]} 6. Nbd2 {[%clk 0:03:03]}  c5 {[%clk 0:02:50]} 7. c3 {[%clk 0:03:03]}  Qc7 {[%clk 0:02:49]} 8. Be2 {[%clk 0:03:04]}  Nbd7 {[%clk 0:02:47]} 9. c4 {[%clk 0:03:05]}  b6 {[%clk 0:02:45]} 10. Rc1 {[%clk 0:03:04]}  Bb7 {[%clk 0:02:39]} 11. dxc5 {[%clk 0:03:02]}  bxc5 {[%clk 0:02:30]} 12. cxd5 {[%clk 0:02:59]}  exd5 {[%clk 0:02:30]} 13. O-O {[%clk 0:02:58]}  Bxg3 {[%clk 0:02:27]} 14. hxg3 {[%clk 0:02:58]}  Qb6 {[%clk 0:02:21]} 15. Qb3 {[%clk 0:02:55]}  h6 {[%clk 0:02:11]} 16. Qa3 {[%clk 0:02:52]}  Rfe8 {[%clk 0:02:09]} 17. Bd3 {[%clk 0:02:46]}  Ne4 {[%clk 0:02:02]} 18. Bxe4 {[%clk 0:02:19]}  dxe4 {[%clk 0:02:01]} 19. Nc4 {[%clk 0:02:19]}  Qb4 {[%clk 0:01:42]} 20. Nh4 {[%clk 0:01:48]}  Qxa3 {[%clk 0:01:33]} 21. Nxa3 {[%clk 0:01:48]}  Ba6 {[%clk 0:01:33]} 22. Rfd1 {[%clk 0:01:34]}  Bd3 {[%clk 0:01:32]} 23. Nf5 {[%clk 0:01:30]}  Re6 {[%clk 0:01:15]} 24. Nc4 {[%clk 0:01:23]}  g6 {[%clk 0:01:05]} 25. Nxh6+ {[%clk 0:01:12]}  Kg7 {[%clk 0:01:04]} 26. Ng4 {[%clk 0:01:12]}  f5 {[%clk 0:01:03]} 27. Nh2 {[%clk 0:01:08]}  Nb6 {[%clk 0:01:03]} 28. Na5 {[%clk 0:00:56]}  c4 {[%clk 0:00:56]} 29. b3 {[%clk 0:00:54]}  Rc8 {[%clk 0:00:49]} 30. bxc4 {[%clk 0:00:49]}  Na4 {[%clk 0:00:49]} 31. Nf3 {[%clk 0:00:41]}  Ra6 {[%clk 0:00:39]} 32. Nb3 {[%clk 0:00:33]}  Nb2 {[%clk 0:00:39]} 33. Rd2 {[%clk 0:00:30]}  Nxc4 {[%clk 0:00:39]} 34. Ne5 {[%clk 0:00:22]}  Nxd2 {[%clk 0:00:28]} 35. Rxc8 {[%clk 0:00:23]}  Rxa2 {[%clk 0:00:25]} 36. Nxd2 {[%clk 0:00:17]}  Rxd2 {[%clk 0:00:24]} 37. Rc7+ {[%clk 0:00:18]}  Kf6 {[%clk 0:00:24]} 38. f4 {[%clk 0:00:17]}  exf3 {[%clk 0:00:22]} 39. Nxf3 {[%clk 0:00:17]}  Rd1+ {[%clk 0:00:21]} 40. Kh2 {[%clk 0:00:16]}  Be4 {[%clk 0:00:18]} 41. Rxa7 {[%clk 0:00:12]}  Rc1 {[%clk 0:00:18]} 42. Ra6+ {[%clk 0:00:12]}  Kg7 {[%clk 0:00:18]} 43. Ne5 {[%clk 0:00:09]}  Rc2 {[%clk 0:00:17]} 44. Rxg6+ {[%clk 0:00:09]}  Kh7 {[%clk 0:00:17]} 45. Rb6 {[%clk 0:00:05]}  Rxg2+ {[%clk 0:00:17]} 46. Kh3 {[%clk 0:00:06]}  Rg1 {[%clk 0:00:15]} 47. Kh4 {[%clk 0:00:05]}  Re1 {[%clk 0:00:13]} 48. Kg5 {[%clk 0:00:05]}  Rxe3 {[%clk 0:00:13]} 49. Kf4 {[%clk 0:00:04]}  Re1 {[%clk 0:00:13]} 50. Ra6 {[%clk 0:00:04]}  Rb1 {[%clk 0:00:12]} 51. Kg5 {[%clk 0:00:04]}  Rb3 {[%clk 0:00:12]} 52. Ra7+ {[%clk 0:00:03]}  Kg8 {[%clk 0:00:12]} 53. Ng6 {[%clk 0:00:02]}  Rxg3+ {[%clk 0:00:11]} 54. Kf6 {[%clk 0:00:03]}  Rxg6+ {[%clk 0:00:09]} 55. Kxg6 {[%clk 0:00:04]}  f4+ {[%clk 0:00:10]} 56. Kg5 {[%clk 0:00:01]}  f3 {[%clk 0:00:10]} 57. Ra4 {[%clk 0:00:01]}  Bc6 {[%clk 0:00:08]} 58. Rf4 {[%clk 0:00:01]}  Kg7 {[%clk 0:00:07]} 59. Rf6 {[%clk 0:00:02]}  Bd5 {[%clk 0:00:07]} 60. Rf5 {[%clk 0:00:02]}  Be4 {[%clk 0:00:07]} 61. Rf4 {[%clk 0:00:02]}  Bd5 {[%clk 0:00:07]} 62. Kf5 {[%clk 0:00:02]}  Bc6 {[%clk 0:00:04]} 63. Ke5 {[%clk 0:00:03]}  Bb7 {[%clk 0:00:01]} 64. Rf6 {[%clk 0:00:03]} 1-0


[Site "https://www.chess.com"]

[Event "Titled Tuesday Blitz June 6 Early 2023"]
[White "caropawn10"]
[Black "Zaitsev, Alexander"]
[BlackFideId "4164490"]
[WhiteElo "2734"]
[BlackElo "2373"]
[Result "1/2-1/2"]
[Round "2"]
[TimeControl "180+2"]
[Date "2023.06.06"]
[WhiteClock "0:00:22"]
[BlackClock "0:00:11"]
[Board "60"]

1. c4 {[%clk 0:03:00]}  Nf6 {[%clk 0:02:59]} 2. d4 {[%clk 0:02:58]}  e6 {[%clk 0:03:00]} 3. Nc3 {[%clk 0:02:58]}  Bb4 {[%clk 0:03:00]} 4. e3 {[%clk 0:02:58]}  b6 {[%clk 0:03:00]} 5. Bd2 {[%clk 0:02:58]}  Bb7 {[%clk 0:02:51]} 6. Nf3 {[%clk 0:02:54]}  O-O {[%clk 0:02:45]} 7. Bd3 {[%clk 0:02:53]}  d5 {[%clk 0:02:38]} 8. cxd5 {[%clk 0:02:52]}  exd5 {[%clk 0:02:37]} 9. Rc1 {[%clk 0:02:52]}  a6 {[%clk 0:02:33]} 10. O-O {[%clk 0:02:51]}  Nbd7 {[%clk 0:02:23]} 11. Ne5 {[%clk 0:02:51]}  Bd6 {[%clk 0:02:04]} 12. f4 {[%clk 0:02:50]}  Ne4 {[%clk 0:01:59]} 13. Nxe4 {[%clk 0:02:44]}  dxe4 {[%clk 0:02:00]} 14. Bc4 {[%clk 0:02:45]}  Qe7 {[%clk 0:01:34]} 15. Qb3 {[%clk 0:02:42]}  b5 {[%clk 0:01:26]} 16. Bd5 {[%clk 0:02:36]}  Bxd5 {[%clk 0:01:26]} 17. Qxd5 {[%clk 0:02:37]}  Nf6 {[%clk 0:01:24]} 18. Qb3 {[%clk 0:02:37]}  Qe6 {[%clk 0:01:09]} 19. Qxe6 {[%clk 0:02:26]}  fxe6 {[%clk 0:01:09]} 20. Rc6 {[%clk 0:02:19]}  Nd5 {[%clk 0:01:00]} 21. Rfc1 {[%clk 0:02:18]}  Bxe5 {[%clk 0:00:52]} 22. dxe5 {[%clk 0:02:14]}  Kf7 {[%clk 0:00:51]} 23. Kf2 {[%clk 0:02:14]}  Ke7 {[%clk 0:00:49]} 24. Ke2 {[%clk 0:02:14]}  Kd7 {[%clk 0:00:48]} 25. R6c5 {[%clk 0:02:13]}  g5 {[%clk 0:00:40]} 26. g3 {[%clk 0:02:13]}  gxf4 {[%clk 0:00:38]} 27. exf4 {[%clk 0:02:13]}  h5 {[%clk 0:00:35]} 28. h4 {[%clk 0:02:08]}  Rg8 {[%clk 0:00:35]} 29. Be1 {[%clk 0:02:09]}  Rg7 {[%clk 0:00:31]} 30. Rd1 {[%clk 0:02:09]}  Rag8 {[%clk 0:00:29]} 31. f5 {[%clk 0:02:06]}  c6 {[%clk 0:00:19]} 32. fxe6+ {[%clk 0:02:06]}  Kxe6 {[%clk 0:00:18]} 33. Rxc6+ {[%clk 0:02:07]}  Kxe5 {[%clk 0:00:19]} 34. Rh6 {[%clk 0:01:58]}  Rd7 {[%clk 0:00:07]} 35. Rxh5+ {[%clk 0:01:56]}  Ke6 {[%clk 0:00:07]} 36. Rh6+ {[%clk 0:01:46]}  Ke5 {[%clk 0:00:07]} 37. Bf2 {[%clk 0:01:47]}  Rgd8 {[%clk 0:00:06]} 38. Bd4+ {[%clk 0:01:44]}  Kf5 {[%clk 0:00:06]} 39. Rh1 {[%clk 0:00:40]}  Nf4+ {[%clk 0:00:05]} 40. gxf4 {[%clk 0:00:38]}  Rxd4 {[%clk 0:00:06]} 41. Re1 {[%clk 0:00:32]}  Rd2+ {[%clk 0:00:06]} 42. Kf1 {[%clk 0:00:32]}  Kxf4 {[%clk 0:00:05]} 43. Rf6+ {[%clk 0:00:32]}  Ke5 {[%clk 0:00:05]} 44. Rf7 {[%clk 0:00:32]}  R8d4 {[%clk 0:00:02]} 45. Kg1 {[%clk 0:00:33]}  Rd1 {[%clk 0:00:02]} 46. Rxd1 {[%clk 0:00:32]}  Rxd1+ {[%clk 0:00:02]} 47. Kg2 {[%clk 0:00:33]}  Rd2+ {[%clk 0:00:03]} 48. Kg3 {[%clk 0:00:33]}  Rxb2 {[%clk 0:00:04]} 49. h5 {[%clk 0:00:33]}  Rxa2 {[%clk 0:00:05]} 50. h6 {[%clk 0:00:34]}  Ra1 {[%clk 0:00:05]} 51. Kg2 {[%clk 0:00:31]}  Ra2+ {[%clk 0:00:06]} 52. Kg3 {[%clk 0:00:29]}  Ra1 {[%clk 0:00:06]} 53. Kh2 {[%clk 0:00:23]}  Rc1 {[%clk 0:00:05]} 54. Rg7 {[%clk 0:00:19]}  Rc8 {[%clk 0:00:06]} 55. h7 {[%clk 0:00:19]}  Rh8 {[%clk 0:00:06]} 56. Kg3 {[%clk 0:00:20]}  Kd4 {[%clk 0:00:06]} 57. Kf4 {[%clk 0:00:20]}  b4 {[%clk 0:00:07]} 58. Rd7+ {[%clk 0:00:21]}  Kc3 {[%clk 0:00:07]} 59. Kxe4 {[%clk 0:00:22]}  b3 {[%clk 0:00:06]} 60. Rc7+ {[%clk 0:00:22]}  Kb2 {[%clk 0:00:07]} 61. Kd3 {[%clk 0:00:23]}  a5 {[%clk 0:00:07]} 62. Ra7 {[%clk 0:00:22]}  a4 {[%clk 0:00:08]} 63. Rxa4 {[%clk 0:00:22]}  Rxh7 {[%clk 0:00:09]} 64. Rg4 {[%clk 0:00:20]}  Rd7+ {[%clk 0:00:09]} 65. Kc4 {[%clk 0:00:20]}  Rc7+ {[%clk 0:00:09]} 66. Kb4 {[%clk 0:00:21]}  Rb7+ {[%clk 0:00:10]} 67. Kc4 {[%clk 0:00:21]}  Rc7+ {[%clk 0:00:11]} 68. Kb4 {[%clk 0:00:21]}  Rc2 {[%clk 0:00:10]} 69. Rg3 {[%clk 0:00:21]}  Ka2 {[%clk 0:00:10]} 70. Rxb3 {[%clk 0:00:22]}  Rb2 {[%clk 0:00:10]} 71. Rxb2+ {[%clk 0:00:22]}  Kxb2 {[%clk 0:00:11]} 1/2-1/2


[Site "https://www.chess.com"]

[Event "Titled Tuesday Blitz June 6 Early 2023"]
[White "carokannlover213"]
[Black "KorolDimitriy75"]
[WhiteElo "2720"]
[BlackElo "2452"]
[Result "0-1"]
[Round "2"]
[TimeControl "180+2"]
[Date "2023.06.06"]
[WhiteClock "0:00:23"]
[BlackClock "0:01:50"]
[Board "65"]

1. e4 {[%clk 0:03:00]}  c5 {[%clk 0:02:59]} 2. Nf3 {[%clk 0:03:01]}  d6 {[%clk 0:03:00]} 3. d4 {[%clk 0:03:00]}  cxd4 {[%clk 0:03:01]} 4. Nxd4 {[%clk 0:03:01]}  Nf6 {[%clk 0:03:00]} 5. Nc3 {[%clk 0:03:01]}  g6 {[%clk 0:03:01]} 6. Be3 {[%clk 0:02:54]}  Bg7 {[%clk 0:03:01]} 7. f3 {[%clk 0:02:54]}  O-O {[%clk 0:03:02]} 8. Qd2 {[%clk 0:02:54]}  Nc6 {[%clk 0:03:02]} 9. O-O-O {[%clk 0:02:55]}  d5 {[%clk 0:03:03]} 10. exd5 {[%clk 0:02:56]}  Nxd5 {[%clk 0:03:03]} 11. Nxc6 {[%clk 0:02:57]}  bxc6 {[%clk 0:03:03]} 12. Bd4 {[%clk 0:02:57]}  e5 {[%clk 0:03:03]} 13. Bc5 {[%clk 0:02:58]}  Be6 {[%clk 0:03:02]} 14. Ne4 {[%clk 0:02:58]}  Rb8 {[%clk 0:03:01]} 15. Bxf8 {[%clk 0:02:49]}  Qxf8 {[%clk 0:03:01]} 16. Kb1 {[%clk 0:02:49]}  f5 {[%clk 0:02:39]} 17. Ng5 {[%clk 0:02:20]}  e4 {[%clk 0:02:37]} 18. Qe2 {[%clk 0:01:58]}  Nc3+ {[%clk 0:02:32]} 19. Kc1 {[%clk 0:01:29]}  Nxe2+ {[%clk 0:02:31]} 20. Bxe2 {[%clk 0:01:30]}  Bxb2+ {[%clk 0:02:28]} 21. Kd2 {[%clk 0:01:29]}  Qd8+ {[%clk 0:02:27]} 22. Ke1 {[%clk 0:01:19]}  Qxg5 {[%clk 0:02:27]} 23. g3 {[%clk 0:01:20]}  exf3 {[%clk 0:02:17]} 24. Bd3 {[%clk 0:01:15]}  Qe3+ {[%clk 0:02:16]} 25. Kf1 {[%clk 0:01:16]}  Bd4 {[%clk 0:01:52]} 26. Rd2 {[%clk 0:01:15]}  Qxd2 {[%clk 0:01:51]} 27. Be2 {[%clk 0:00:23]}  Qxe2# {[%clk 0:01:50]} 0-1


[Site "https://www.chess.com"]

[Event "Titled Tuesday Blitz June 6 Early 2023"]
[White "Ramirez Vido, Robert Yorisan"]
[Black "Jaracz, Pawel"]
[WhiteFideId "3513823"]
[BlackFideId "1102222"]
[WhiteElo "2451"]
[BlackElo "2454"]
[Result "0-1"]
[Round "2"]
[TimeControl "180+2"]
[Date "2023.06.06"]
[WhiteClock "0:00:02"]
[BlackClock "0:01:44"]
[Board "66"]

1. f4 {[%clk 0:02:53]}  b6 {[%clk 0:02:58]} 2. Nf3 {[%clk 0:02:52]}  Bb7 {[%clk 0:02:58]} 3. g3 {[%clk 0:02:52]}  Bxf3 {[%clk 0:02:57]} 4. exf3 {[%clk 0:02:53]}  c5 {[%clk 0:02:55]} 5. Kf2 {[%clk 0:02:45]}  Nc6 {[%clk 0:02:55]} 6. Nc3 {[%clk 0:02:42]}  g6 {[%clk 0:02:53]} 7. Bc4 {[%clk 0:02:35]}  Bg7 {[%clk 0:02:53]} 8. Kg2 {[%clk 0:02:35]}  e6 {[%clk 0:02:53]} 9. Re1 {[%clk 0:02:33]}  Nge7 {[%clk 0:02:52]} 10. d3 {[%clk 0:02:18]}  h5 {[%clk 0:02:51]} 11. h4 {[%clk 0:02:14]}  Nd4 {[%clk 0:02:46]} 12. Be3 {[%clk 0:02:10]}  d5 {[%clk 0:02:41]} 13. Bxd4 {[%clk 0:01:46]}  Bxd4 {[%clk 0:02:30]} 14. Bb5+ {[%clk 0:01:41]}  Kf8 {[%clk 0:02:29]} 15. Ne2 {[%clk 0:01:08]}  Bxb2 {[%clk 0:02:27]} 16. Rb1 {[%clk 0:01:07]}  Bf6 {[%clk 0:02:26]} 17. d4 {[%clk 0:00:27]}  a6 {[%clk 0:02:20]} 18. dxc5 {[%clk 0:00:15]}  axb5 {[%clk 0:02:19]} 19. Rxb5 {[%clk 0:00:16]}  bxc5 {[%clk 0:02:19]} 20. Rxc5 {[%clk 0:00:15]}  Rxa2 {[%clk 0:02:17]} 21. f5 {[%clk 0:00:15]}  Nxf5 {[%clk 0:02:15]} 22. Nf4 {[%clk 0:00:14]}  Qd6 {[%clk 0:02:04]} 23. Rc8+ {[%clk 0:00:13]}  Kg7 {[%clk 0:02:05]} 24. Rxh8 {[%clk 0:00:13]}  Kxh8 {[%clk 0:02:05]} 25. Kh3 {[%clk 0:00:07]}  Ra3 {[%clk 0:01:57]} 26. Qe2 {[%clk 0:00:05]}  Re3 {[%clk 0:01:55]} 27. Qd2 {[%clk 0:00:04]}  Rxe1 {[%clk 0:01:50]} 28. Qxe1 {[%clk 0:00:05]}  Qe5 {[%clk 0:01:44]} 29. Qb4 {[%clk 0:00:02]}  Kg7 {[%clk 0:01:44]} 0-1


[Site "https://www.chess.com"]

[Event "Titled Tuesday Blitz June 6 Early 2023"]
[White "benny_aizenberg"]
[Black "Rangel, Daniel"]
[BlackFideId "2124475"]
[WhiteElo "2704"]
[BlackElo "2231"]
[Result "1-0"]
[Round "2"]
[TimeControl "180+2"]
[Date "2023.06.06"]
[WhiteClock "0:00:20"]
[BlackClock "0:00:09"]
[Board "67"]

1. f4 {[%clk 0:02:45]}  c5 {[%clk 0:02:58]} 2. Nf3 {[%clk 0:02:42]}  g6 {[%clk 0:02:59]} 3. e4 {[%clk 0:02:41]}  Bg7 {[%clk 0:03:00]} 4. Nc3 {[%clk 0:02:39]}  e6 {[%clk 0:03:00]} 5. e5 {[%clk 0:02:38]}  Ne7 {[%clk 0:02:58]} 6. Ne4 {[%clk 0:02:37]}  O-O {[%clk 0:02:56]} 7. Nd6 {[%clk 0:02:35]}  Nf5 {[%clk 0:02:46]} 8. Nxf5 {[%clk 0:02:30]}  exf5 {[%clk 0:02:47]} 9. Bc4 {[%clk 0:02:25]}  d6 {[%clk 0:02:42]} 10. d4 {[%clk 0:02:19]}  cxd4 {[%clk 0:02:40]} 11. Qxd4 {[%clk 0:02:16]}  dxe5 {[%clk 0:02:25]} 12. Qxd8 {[%clk 0:02:11]}  Rxd8 {[%clk 0:02:26]} 13. fxe5 {[%clk 0:02:09]}  Nc6 {[%clk 0:02:19]} 14. Bf4 {[%clk 0:02:07]}  Be6 {[%clk 0:02:12]} 15. Bxe6 {[%clk 0:01:59]}  fxe6 {[%clk 0:02:13]} 16. Kf2 {[%clk 0:01:54]}  h6 {[%clk 0:02:09]} 17. h4 {[%clk 0:01:53]}  Rd5 {[%clk 0:02:05]} 18. Rhe1 {[%clk 0:01:50]}  Rad8 {[%clk 0:02:04]} 19. c3 {[%clk 0:01:49]}  Kf7 {[%clk 0:01:56]} 20. Re2 {[%clk 0:01:47]}  b5 {[%clk 0:01:50]} 21. Rc1 {[%clk 0:01:41]}  R8d7 {[%clk 0:01:43]} 22. c4 {[%clk 0:01:40]}  bxc4 {[%clk 0:01:44]} 23. Rxc4 {[%clk 0:01:40]}  Nd4 {[%clk 0:01:38]} 24. Nxd4 {[%clk 0:01:31]}  Rxd4 {[%clk 0:01:39]} 25. Rxd4 {[%clk 0:01:23]}  Rxd4 {[%clk 0:01:40]} 26. g3 {[%clk 0:01:18]}  g5 {[%clk 0:01:37]} 27. hxg5 {[%clk 0:01:17]}  hxg5 {[%clk 0:01:38]} 28. Bxg5 {[%clk 0:01:17]}  Bf8 {[%clk 0:01:32]} 29. Rc2 {[%clk 0:01:11]}  Rd5 {[%clk 0:01:26]} 30. Rc7+ {[%clk 0:01:02]}  Kg6 {[%clk 0:01:24]} 31. Bf6 {[%clk 0:00:59]}  Rd3 {[%clk 0:01:09]} 32. Rc8 {[%clk 0:00:45]}  Bh6 {[%clk 0:01:03]} 33. Rb8 {[%clk 0:00:39]}  f4 {[%clk 0:00:52]} 34. g4 {[%clk 0:00:35]}  f3 {[%clk 0:00:37]} 35. g5 {[%clk 0:00:33]}  Bxg5 {[%clk 0:00:20]} 36. Rg8+ {[%clk 0:00:32]}  Kf5 {[%clk 0:00:18]} 37. Rxg5+ {[%clk 0:00:29]}  Kf4 {[%clk 0:00:18]} 38. Ke1 {[%clk 0:00:26]}  Ke3 {[%clk 0:00:14]} 39. Rg3 {[%clk 0:00:25]}  Rd7 {[%clk 0:00:10]} 40. Bg5+ {[%clk 0:00:25]}  Ke4 {[%clk 0:00:10]} 41. Kf2 {[%clk 0:00:23]}  Rc7 {[%clk 0:00:10]} 42. Rxf3 {[%clk 0:00:22]}  Rc2+ {[%clk 0:00:10]} 43. Kg3 {[%clk 0:00:22]}  Rxb2 {[%clk 0:00:10]} 44. Rf4+ {[%clk 0:00:20]}  Kxe5 {[%clk 0:00:09]} 45. Bf6+ {[%clk 0:00:19]}  Kd5 {[%clk 0:00:09]} 46. Bxb2 {[%clk 0:00:20]} 1-0


[Site "https://www.chess.com"]

[Event "Titled Tuesday Blitz June 6 Early 2023"]
[White "Radzhabov, Rodion"]
[Black "Przybylski, Wojciech"]
[WhiteFideId "884715"]
[BlackFideId "1117599"]
[WhiteElo "2174"]
[BlackElo "2228"]
[Result "1-0"]
[Round "2"]
[TimeControl "180+2"]
[Date "2023.06.06"]
[WhiteClock "0:01:20"]
[BlackClock "0:01:29"]
[Board "68"]

1. e4 {[%clk 0:03:00]}  e5 {[%clk 0:02:58]} 2. Nf3 {[%clk 0:03:00]}  Nc6 {[%clk 0:02:58]} 3. Nc3 {[%clk 0:03:00]}  Nf6 {[%clk 0:02:58]} 4. Be2 {[%clk 0:03:00]}  Be7 {[%clk 0:02:58]} 5. O-O {[%clk 0:03:00]}  O-O {[%clk 0:02:58]} 6. d4 {[%clk 0:03:00]}  exd4 {[%clk 0:02:57]} 7. Nxd4 {[%clk 0:03:01]}  d6 {[%clk 0:02:58]} 8. Be3 {[%clk 0:03:01]}  Re8 {[%clk 0:02:51]} 9. Nxc6 {[%clk 0:02:57]}  bxc6 {[%clk 0:02:50]} 10. Qd3 {[%clk 0:02:55]}  Nd7 {[%clk 0:02:47]} 11. f4 {[%clk 0:02:53]}  Bf8 {[%clk 0:02:45]} 12. Rad1 {[%clk 0:02:52]}  a5 {[%clk 0:02:44]} 13. Qc4 {[%clk 0:02:40]}  c5 {[%clk 0:02:43]} 14. Qd5 {[%clk 0:02:34]}  Nb6 {[%clk 0:02:40]} 15. Qh5 {[%clk 0:02:30]}  Bb7 {[%clk 0:02:34]} 16. Bb5 {[%clk 0:02:19]}  Rxe4 {[%clk 0:02:28]} 17. Nxe4 {[%clk 0:02:16]}  Bxe4 {[%clk 0:02:27]} 18. Bd3 {[%clk 0:02:13]}  Qe7 {[%clk 0:02:23]} 19. Rfe1 {[%clk 0:02:09]}  Bg6 {[%clk 0:02:20]} 20. Qf3 {[%clk 0:02:04]}  Qf6 {[%clk 0:02:19]} 21. f5 {[%clk 0:02:01]}  c4 {[%clk 0:02:13]} 22. Bxb6 {[%clk 0:01:59]}  cxd3 {[%clk 0:02:04]} 23. Qxa8 {[%clk 0:01:53]}  dxc2 {[%clk 0:02:03]} 24. Rc1 {[%clk 0:01:43]}  Bxf5 {[%clk 0:01:55]} 25. Re8 {[%clk 0:01:41]}  h6 {[%clk 0:01:46]} 26. Rxf8+ {[%clk 0:01:40]}  Kh7 {[%clk 0:01:46]} 27. Rh8+ {[%clk 0:01:34]}  Kg6 {[%clk 0:01:46]} 28. Be3 {[%clk 0:01:34]}  Qe5 {[%clk 0:01:41]} 29. Qf3 {[%clk 0:01:34]}  Qxb2 {[%clk 0:01:34]} 30. Qg3+ {[%clk 0:01:29]}  Kf6 {[%clk 0:01:34]} 31. Qh4+ {[%clk 0:01:24]}  Kg6 {[%clk 0:01:31]} 32. Rxh6+ {[%clk 0:01:19]}  gxh6 {[%clk 0:01:29]} 33. Qxh6# {[%clk 0:01:20]} 1-0


[Site "https://www.chess.com"]

[Event "Titled Tuesday Blitz June 6 Early 2023"]
[White "Goryachkina, Aleksandra"]
[Black "Chan, Kim Yew"]
[WhiteFideId "4147103"]
[BlackFideId "5717981"]
[WhiteElo "2471"]
[BlackElo "2206"]
[Result "0-1"]
[Round "2"]
[TimeControl "180+2"]
[Date "2023.06.06"]
[WhiteClock "0:00:01"]
[BlackClock "0:00:02"]
[Board "69"]

1. e4 {[%clk 0:03:00]}  c5 {[%clk 0:03:00]} 2. Nf3 {[%clk 0:03:00]}  e6 {[%clk 0:03:00]} 3. d4 {[%clk 0:02:58]}  cxd4 {[%clk 0:03:01]} 4. Nxd4 {[%clk 0:02:59]}  Nc6 {[%clk 0:03:02]} 5. Nc3 {[%clk 0:02:56]}  Qc7 {[%clk 0:03:02]} 6. g3 {[%clk 0:02:51]}  a6 {[%clk 0:02:52]} 7. Bg2 {[%clk 0:02:51]}  Nxd4 {[%clk 0:02:52]} 8. Qxd4 {[%clk 0:02:49]}  Nf6 {[%clk 0:02:48]} 9. Bf4 {[%clk 0:02:31]}  d6 {[%clk 0:02:38]} 10. Qd3 {[%clk 0:02:29]}  Be7 {[%clk 0:02:14]} 11. O-O-O {[%clk 0:02:21]}  Ng4 {[%clk 0:01:59]} 12. Qe2 {[%clk 0:01:55]}  Ne5 {[%clk 0:01:59]} 13. Be3 {[%clk 0:01:29]}  O-O {[%clk 0:01:27]} 14. f4 {[%clk 0:01:29]}  Nc4 {[%clk 0:01:27]} 15. Bd4 {[%clk 0:01:29]}  b5 {[%clk 0:01:10]} 16. Rhf1 {[%clk 0:01:13]}  Bb7 {[%clk 0:01:01]} 17. h4 {[%clk 0:00:33]}  Rac8 {[%clk 0:00:56]} 18. Rd3 {[%clk 0:00:29]}  b4 {[%clk 0:00:26]} 19. Nd1 {[%clk 0:00:29]}  a5 {[%clk 0:00:25]} 20. f5 {[%clk 0:00:11]}  e5 {[%clk 0:00:20]} 21. Bg1 {[%clk 0:00:10]}  Ba6 {[%clk 0:00:19]} 22. Kb1 {[%clk 0:00:05]}  Nb6 {[%clk 0:00:11]} 23. Ne3 {[%clk 0:00:05]}  Bxd3 {[%clk 0:00:06]} 24. Qxd3 {[%clk 0:00:06]}  Rfd8 {[%clk 0:00:05]} 25. Bf2 {[%clk 0:00:04]}  a4 {[%clk 0:00:05]} 26. g4 {[%clk 0:00:05]}  a3 {[%clk 0:00:05]} 27. g5 {[%clk 0:00:03]}  axb2 {[%clk 0:00:05]} 28. f6 {[%clk 0:00:03]}  Bf8 {[%clk 0:00:04]} 29. fxg7 {[%clk 0:00:03]}  Bxg7 {[%clk 0:00:05]} 30. h5 {[%clk 0:00:03]}  Nc4 {[%clk 0:00:03]} 31. h6 {[%clk 0:00:01]}  Bf8 {[%clk 0:00:02]} 32. Nxc4 {[%clk 0:00:01]}  Qxc4 {[%clk 0:00:02]} 0-1


[Site "https://www.chess.com"]

[Event "Titled Tuesday Blitz June 6 Early 2023"]
[White "Amilal Munkhdalai"]
[Black "FunnyDuck66"]
[WhiteFideId "4903250"]
[WhiteElo "2293"]
[BlackElo "2417"]
[Result "1-0"]
[Round "2"]
[TimeControl "180+2"]
[Date "2023.06.06"]
[WhiteClock "0:00:40"]
[BlackClock "0:01:17"]
[Board "71"]

1. e4 {[%clk 0:03:00]}  c6 {[%clk 0:03:00]} 2. Nf3 {[%clk 0:03:00]}  d5 {[%clk 0:03:00]} 3. Nc3 {[%clk 0:03:01]}  dxe4 {[%clk 0:03:01]} 4. Nxe4 {[%clk 0:03:01]}  Nf6 {[%clk 0:03:02]} 5. Qe2 {[%clk 0:03:00]}  Nxe4 {[%clk 0:03:02]} 6. Qxe4 {[%clk 0:03:00]}  Be6 {[%clk 0:03:03]} 7. c4 {[%clk 0:02:59]}  Nd7 {[%clk 0:03:03]} 8. h3 {[%clk 0:02:47]}  Nf6 {[%clk 0:03:02]} 9. Qe3 {[%clk 0:02:47]}  Bf5 {[%clk 0:03:02]} 10. d3 {[%clk 0:02:40]}  e6 {[%clk 0:03:00]} 11. g4 {[%clk 0:02:38]}  Bg6 {[%clk 0:02:59]} 12. Ne5 {[%clk 0:02:38]}  Bd6 {[%clk 0:02:57]} 13. Nxg6 {[%clk 0:02:33]}  hxg6 {[%clk 0:02:57]} 14. Bg2 {[%clk 0:02:33]}  Qc7 {[%clk 0:02:54]} 15. d4 {[%clk 0:02:32]}  O-O-O {[%clk 0:02:52]} 16. Bd2 {[%clk 0:02:29]}  Rhe8 {[%clk 0:02:36]} 17. O-O-O {[%clk 0:02:23]}  e5 {[%clk 0:02:36]} 18. dxe5 {[%clk 0:02:07]}  Bxe5 {[%clk 0:02:35]} 19. Qa3 {[%clk 0:02:07]}  Kb8 {[%clk 0:02:30]} 20. Be3 {[%clk 0:02:06]}  b6 {[%clk 0:02:24]} 21. Qa4 {[%clk 0:02:04]}  c5 {[%clk 0:02:11]} 22. Qb3 {[%clk 0:01:50]}  Bd4 {[%clk 0:02:07]} 23. Bxd4 {[%clk 0:01:49]}  cxd4 {[%clk 0:02:07]} 24. Kb1 {[%clk 0:01:46]}  Re2 {[%clk 0:02:05]} 25. Qf3 {[%clk 0:01:45]}  Re4 {[%clk 0:02:05]} 26. g5 {[%clk 0:01:40]}  Qf4 {[%clk 0:01:45]} 27. gxf6 {[%clk 0:01:39]}  Qxf3 {[%clk 0:01:46]} 28. Bxf3 {[%clk 0:01:39]}  Rf4 {[%clk 0:01:47]} 29. Bd5 {[%clk 0:01:33]}  gxf6 {[%clk 0:01:47]} 30. Bxf7 {[%clk 0:01:27]}  Rxf2 {[%clk 0:01:42]} 31. Bxg6 {[%clk 0:01:22]}  Rg8 {[%clk 0:01:42]} 32. Be4 {[%clk 0:01:20]}  f5 {[%clk 0:01:42]} 33. Bd5 {[%clk 0:01:20]}  Re8 {[%clk 0:01:41]} 34. Rhe1 {[%clk 0:01:16]}  Rh8 {[%clk 0:01:42]} 35. Rxd4 {[%clk 0:01:13]}  Rxh3 {[%clk 0:01:42]} 36. Ka1 {[%clk 0:00:53]}  Rhh2 {[%clk 0:01:42]} 37. Rb1 {[%clk 0:00:53]}  f4 {[%clk 0:01:42]} 38. Rd3 {[%clk 0:00:52]}  Kc7 {[%clk 0:01:36]} 39. Ra3 {[%clk 0:00:52]}  a5 {[%clk 0:01:36]} 40. Rb3 {[%clk 0:00:51]}  Rd2 {[%clk 0:01:24]} 41. a3 {[%clk 0:00:49]}  a4 {[%clk 0:01:23]} 42. Rb4 {[%clk 0:00:49]}  Rh3 {[%clk 0:01:17]} 43. Rf1 {[%clk 0:00:42]}  Rd4 {[%clk 0:01:15]} 44. Rxa4 {[%clk 0:00:39]}  b5 {[%clk 0:01:15]} 45. Ra7+ {[%clk 0:00:39]}  Kb6 {[%clk 0:01:15]} 46. Rb7+ {[%clk 0:00:39]}  Kc5 {[%clk 0:01:16]} 47. Rxb5+ {[%clk 0:00:40]}  Kd6 {[%clk 0:01:17]} 48. Rb6+ {[%clk 0:00:40]}  Kc5 {[%clk 0:01:17]} 49. Rc6# {[%clk 0:00:40]} 1-0


[Site "https://www.chess.com"]